[Event "Titled Tuesday Blitz December 14 2021"]
[White "Gaehwiler, Gabriel"]
[Black "Kamsky, Gata"]
[WhiteFideId "1314530"]
[BlackFideId "2000024"]
[WhiteElo "2383"]
[BlackElo "2645"]
[Result "1/2-1/2"]
[Round "03"]
[TimeControl "180+1"]
[Date "2021.12.14"]
[WhiteClock "0:00:17"]
[BlackClock "0:00:29"]

1. d4 {[%clk 0:03:00]}  f5 {[%clk 0:02:58]} 2. g3 {[%clk 0:02:51]}  Nf6 {[%clk 0:02:58]} 3. Bg2 {[%clk 0:02:51]}  g6 {[%clk 0:02:58]} 4. Nf3 {[%clk 0:02:47]}  Bg7 {[%clk 0:02:58]} 5. c4 {[%clk 0:02:47]}  d6 {[%clk 0:02:57]} 6. O-O {[%clk 0:02:48]}  O-O {[%clk 0:02:55]} 7. Nc3 {[%clk 0:02:48]}  c6 {[%clk 0:02:55]} 8. d5 {[%clk 0:02:48]}  e5 {[%clk 0:02:54]} 9. dxe6 {[%clk 0:02:48]}  Bxe6 {[%clk 0:02:54]} 10. b3 {[%clk 0:02:47]}  Na6 {[%clk 0:02:48]} 11. Bb2 {[%clk 0:02:47]}  Kh8 {[%clk 0:02:42]} 12. Qd2 {[%clk 0:02:42]}  Qe7 {[%clk 0:02:40]} 13. Rad1 {[%clk 0:02:41]}  Rad8 {[%clk 0:02:39]} 14. Qc1 {[%clk 0:02:40]}  Bg8 {[%clk 0:02:28]} 15. Rfe1 {[%clk 0:02:38]}  Rfe8 {[%clk 0:02:27]} 16. Nd4 {[%clk 0:02:36]}  Nc5 {[%clk 0:02:24]} 17. Qc2 {[%clk 0:02:29]}  a5 {[%clk 0:02:23]} 18. Ba1 {[%clk 0:02:27]}  Nce4 {[%clk 0:02:16]} 19. Nxe4 {[%clk 0:02:26]}  fxe4 {[%clk 0:02:14]} 20. Bc3 {[%clk 0:02:16]}  Ra8 {[%clk 0:02:12]} 21. Qc1 {[%clk 0:02:14]}  d5 {[%clk 0:02:11]} 22. cxd5 {[%clk 0:02:12]}  Bxd5 {[%clk 0:02:05]} 23. Nc2 {[%clk 0:02:12]}  a4 {[%clk 0:02:03]} 24. Qb2 {[%clk 0:01:33]}  axb3 {[%clk 0:02:02]} 25. axb3 {[%clk 0:01:34]}  Qf7 {[%clk 0:01:57]} 26. Ne3 {[%clk 0:01:31]}  h5 {[%clk 0:01:30]} 27. h4 {[%clk 0:01:16]}  Re7 {[%clk 0:01:28]} 28. Nxd5 {[%clk 0:01:06]}  Nxd5 {[%clk 0:01:24]} 29. Bxg7+ {[%clk 0:01:06]}  Qxg7 {[%clk 0:01:24]} 30. Qxg7+ {[%clk 0:01:06]}  Kxg7 {[%clk 0:01:24]} 31. Rd4 {[%clk 0:01:07]}  Nf6 {[%clk 0:01:20]} 32. Ra4 {[%clk 0:01:03]}  Rd8 {[%clk 0:01:19]} 33. e3 {[%clk 0:00:58]}  Rd2 {[%clk 0:01:17]} 34. Ra7 {[%clk 0:00:52]}  Rb2 {[%clk 0:01:14]} 35. Bh3 {[%clk 0:00:45]}  Rxb3 {[%clk 0:01:13]} 36. Rd1 {[%clk 0:00:44]}  Rb2 {[%clk 0:01:12]} 37. Rd8 {[%clk 0:00:44]}  Re8 {[%clk 0:01:09]} 38. Rxe8 {[%clk 0:00:35]}  Nxe8 {[%clk 0:01:09]} 39. Bd7 {[%clk 0:00:36]}  Nd6 {[%clk 0:01:07]} 40. Bxc6 {[%clk 0:00:36]}  Kf6 {[%clk 0:01:07]} 41. Bd7 {[%clk 0:00:33]}  Nc4 {[%clk 0:01:03]} 42. Bc8 {[%clk 0:00:30]}  b6 {[%clk 0:01:00]} 43. Bb7 {[%clk 0:00:27]}  Nd2 {[%clk 0:01:00]} 44. Ra8 {[%clk 0:00:25]}  Nf3+ {[%clk 0:00:56]} 45. Kg2 {[%clk 0:00:25]}  Ne1+ {[%clk 0:00:53]} 46. Kg1 {[%clk 0:00:25]}  Nd3 {[%clk 0:00:53]} 47. Bxe4 {[%clk 0:00:23]}  Nxf2 {[%clk 0:00:53]} 48. Rf8+ {[%clk 0:00:19]}  Ke5 {[%clk 0:00:52]} 49. Bxg6 {[%clk 0:00:19]}  Ng4 {[%clk 0:00:47]} 50. Bxh5 {[%clk 0:00:19]}  Rb1+ {[%clk 0:00:43]} 51. Kg2 {[%clk 0:00:19]}  Nxe3+ {[%clk 0:00:44]} 52. Kh2 {[%clk 0:00:18]}  Rb2+ {[%clk 0:00:38]} 53. Kh3 {[%clk 0:00:18]}  Rb1 {[%clk 0:00:37]} 54. Kh2 {[%clk 0:00:18]}  Rb2+ {[%clk 0:00:36]} 55. Kh3 {[%clk 0:00:19]}  Rb1 {[%clk 0:00:36]} 56. Bf3 {[%clk 0:00:18]}  Rb3 {[%clk 0:00:29]} 57. h5 {[%clk 0:00:18]}  Nf5 {[%clk 0:00:29]} 58. Kg2 {[%clk 0:00:18]}  Rb2+ {[%clk 0:00:28]} 59. Kh3 {[%clk 0:00:18]}  Rb3 {[%clk 0:00:29]} 60. Kg2 {[%clk 0:00:16]}  Rb2+ {[%clk 0:00:29]} 61. Kh3 {[%clk 0:00:17]}  Rb3 {[%clk 0:00:29]} 1/2-1/2


[Site "https://www.chess.com"]

[Event "Titled Tuesday Blitz December 14 2021"]
[White "Golizadeh, Asghar"]
[Black "Bacrot, Etienne"]
[WhiteFideId "12505269"]
[BlackFideId "605506"]
[WhiteElo "2403"]
[BlackElo "2673"]
[Result "0-1"]
[Round "03"]
[TimeControl "180+1"]
[Date "2021.12.15"]
[WhiteClock "0:00:09"]
[BlackClock "0:00:14"]

1. e4 {[%clk 0:03:00]}  e5 {[%clk 0:02:58]} 2. Nf3 {[%clk 0:03:00]}  Nc6 {[%clk 0:02:58]} 3. d4 {[%clk 0:03:00]}  exd4 {[%clk 0:02:57]} 4. Bc4 {[%clk 0:03:01]}  Bc5 {[%clk 0:02:54]} 5. c3 {[%clk 0:03:01]}  d3 {[%clk 0:02:53]} 6. Qxd3 {[%clk 0:03:00]}  d6 {[%clk 0:02:51]} 7. b4 {[%clk 0:03:01]}  Bb6 {[%clk 0:02:51]} 8. a4 {[%clk 0:03:01]}  a6 {[%clk 0:02:44]} 9. Be3 {[%clk 0:02:47]}  Bxe3 {[%clk 0:02:41]} 10. Qxe3 {[%clk 0:02:48]}  Nf6 {[%clk 0:02:40]} 11. Nbd2 {[%clk 0:02:47]}  O-O {[%clk 0:02:39]} 12. O-O {[%clk 0:02:47]}  Re8 {[%clk 0:02:38]} 13. Ng5 {[%clk 0:02:42]}  d5 {[%clk 0:02:36]} 14. Ba2 {[%clk 0:01:51]}  h6 {[%clk 0:02:31]} 15. Ngf3 {[%clk 0:01:21]}  dxe4 {[%clk 0:02:29]} 16. Nd4 {[%clk 0:01:22]}  Nxd4 {[%clk 0:02:27]} 17. cxd4 {[%clk 0:01:22]}  Be6 {[%clk 0:02:26]} 18. Nc4 {[%clk 0:01:12]}  Nd5 {[%clk 0:02:20]} 19. Qd2 {[%clk 0:01:04]}  Qg5 {[%clk 0:02:14]} 20. Ne3 {[%clk 0:00:59]}  Nf4 {[%clk 0:02:12]} 21. Kh1 {[%clk 0:00:41]}  Rad8 {[%clk 0:02:04]} 22. Rad1 {[%clk 0:00:37]}  Bxa2 {[%clk 0:01:44]} 23. Qxa2 {[%clk 0:00:38]}  Nd3 {[%clk 0:01:44]} 24. Qc2 {[%clk 0:00:20]}  c6 {[%clk 0:01:37]} 25. Rb1 {[%clk 0:00:16]}  Rxd4 {[%clk 0:01:33]} 26. b5 {[%clk 0:00:16]}  axb5 {[%clk 0:01:28]} 27. axb5 {[%clk 0:00:17]}  c5 {[%clk 0:01:28]} 28. Qa2 {[%clk 0:00:16]}  Red8 {[%clk 0:01:24]} 29. b6 {[%clk 0:00:16]}  h5 {[%clk 0:01:13]} 30. h3 {[%clk 0:00:11]}  Nf4 {[%clk 0:01:09]} 31. Rb2 {[%clk 0:00:07]}  Rd1 {[%clk 0:01:01]} 32. Rb1 {[%clk 0:00:06]}  R1d3 {[%clk 0:00:52]} 33. Rb2 {[%clk 0:00:05]}  g6 {[%clk 0:00:49]} 34. Qa4 {[%clk 0:00:04]}  R3d4 {[%clk 0:00:46]} 35. Qa7 {[%clk 0:00:04]}  Rd1 {[%clk 0:00:41]} 36. Rb1 {[%clk 0:00:04]}  R1d7 {[%clk 0:00:37]} 37. Qa4 {[%clk 0:00:04]}  Rd4 {[%clk 0:00:30]} 38. Qa7 {[%clk 0:00:04]}  R8d7 {[%clk 0:00:30]} 39. Qa8+ {[%clk 0:00:04]}  Kg7 {[%clk 0:00:30]} 40. Rbc1 {[%clk 0:00:05]}  Nd3 {[%clk 0:00:29]} 41. Rc2 {[%clk 0:00:04]}  R4d6 {[%clk 0:00:27]} 42. Qe8 {[%clk 0:00:04]}  Qe7 {[%clk 0:00:24]} 43. Qa8 {[%clk 0:00:02]}  Rd8 {[%clk 0:00:23]} 44. Qa7 {[%clk 0:00:01]}  Nf4 {[%clk 0:00:20]} 45. Nc4 {[%clk 0:00:02]}  Rd4 {[%clk 0:00:19]} 46. Qa5 {[%clk 0:00:02]}  Rd3 {[%clk 0:00:16]} 47. Ne3 {[%clk 0:00:02]}  Kh7 {[%clk 0:00:15]} 48. Qxc5 {[%clk 0:00:02]}  Qxc5 {[%clk 0:00:13]} 49. Rxc5 {[%clk 0:00:03]}  Ne6 {[%clk 0:00:13]} 50. Re5 {[%clk 0:00:02]}  R3d4 {[%clk 0:00:12]} 51. g4 {[%clk 0:00:02]}  hxg4 {[%clk 0:00:12]} 52. Nxg4 {[%clk 0:00:02]}  Kg7 {[%clk 0:00:12]} 53. Kg2 {[%clk 0:00:02]}  Nf4+ {[%clk 0:00:12]} 54. Kg3 {[%clk 0:00:02]}  Nh5+ {[%clk 0:00:12]} 55. Kg2 {[%clk 0:00:02]}  R8d6 {[%clk 0:00:11]} 56. Re1 {[%clk 0:00:03]}  Nf4+ {[%clk 0:00:11]} 57. Kg3 {[%clk 0:00:03]}  Nd3 {[%clk 0:00:11]} 58. R1xe4 {[%clk 0:00:02]}  Nxe5 {[%clk 0:00:11]} 59. Rxe5 {[%clk 0:00:02]}  Rxb6 {[%clk 0:00:12]} 60. Re7 {[%clk 0:00:02]}  Rdb4 {[%clk 0:00:11]} 61. f3 {[%clk 0:00:03]}  Re6 {[%clk 0:00:10]} 62. h4 {[%clk 0:00:04]}  Rxe7 {[%clk 0:00:10]} 63. h5 {[%clk 0:00:01]}  Rxg4+ {[%clk 0:00:10]} 64. Kxg4 {[%clk 0:00:01]}  gxh5+ {[%clk 0:00:10]} 65. Kh4 {[%clk 0:00:01]}  b5 {[%clk 0:00:10]} 66. f4 {[%clk 0:00:02]}  b4 {[%clk 0:00:11]} 67. Kg5 {[%clk 0:00:03]}  b3 {[%clk 0:00:12]} 68. f5 {[%clk 0:00:04]}  f6+ {[%clk 0:00:12]} 69. Kxh5 {[%clk 0:00:04]}  b2 {[%clk 0:00:12]} 70. Kg4 {[%clk 0:00:05]}  b1=Q {[%clk 0:00:13]} 71. Kh5 {[%clk 0:00:06]}  Qh1+ {[%clk 0:00:12]} 72. Kg4 {[%clk 0:00:06]}  Re4+ {[%clk 0:00:13]} 73. Kg3 {[%clk 0:00:07]}  Re3+ {[%clk 0:00:13]} 74. Kf2 {[%clk 0:00:08]}  Qf3+ {[%clk 0:00:13]} 75. Kg1 {[%clk 0:00:09]}  Re1+ {[%clk 0:00:13]} 76. Kh2 {[%clk 0:00:09]}  Rh1# {[%clk 0:00:14]} 0-1


[Site "https://www.chess.com"]

[Event "Titled Tuesday Blitz December 14 2021"]
[White "Karttunen, Mika"]
[Black "Vokhidov, Shamsiddin"]
[WhiteFideId "502081"]
[BlackFideId "14204223"]
[WhiteElo "2343"]
[BlackElo "2613"]
[Result "1-0"]
[Round "03"]
[TimeControl "180+1"]
[Date "2021.12.15"]
[WhiteClock "0:00:06"]
[BlackClock "0:00:49"]

1. e4 {[%clk 0:03:00]}  c5 {[%clk 0:03:00]} 2. Nf3 {[%clk 0:03:00]}  d6 {[%clk 0:03:00]} 3. d4 {[%clk 0:03:00]}  cxd4 {[%clk 0:03:01]} 4. Nxd4 {[%clk 0:03:01]}  Nf6 {[%clk 0:03:02]} 5. Nc3 {[%clk 0:03:01]}  a6 {[%clk 0:03:02]} 6. h3 {[%clk 0:02:59]}  e5 {[%clk 0:03:01]} 7. Nde2 {[%clk 0:02:54]}  h5 {[%clk 0:02:59]} 8. g3 {[%clk 0:02:44]}  Be7 {[%clk 0:02:56]} 9. Bg2 {[%clk 0:02:44]}  b5 {[%clk 0:02:53]} 10. a4 {[%clk 0:02:18]}  Bb7 {[%clk 0:02:49]} 11. axb5 {[%clk 0:02:15]}  axb5 {[%clk 0:02:50]} 12. Rxa8 {[%clk 0:02:13]}  Bxa8 {[%clk 0:02:51]} 13. Qd3 {[%clk 0:02:12]}  b4 {[%clk 0:02:49]} 14. Nd5 {[%clk 0:02:11]}  Nbd7 {[%clk 0:02:46]} 15. Qb5 {[%clk 0:01:55]}  Nxd5 {[%clk 0:02:38]} 16. exd5 {[%clk 0:01:55]}  Qb6 {[%clk 0:02:38]} 17. Qa4 {[%clk 0:01:50]}  Qb7 {[%clk 0:02:38]} 18. Bd2 {[%clk 0:01:43]}  b3 {[%clk 0:02:26]} 19. c4 {[%clk 0:01:36]}  O-O {[%clk 0:02:24]} 20. O-O {[%clk 0:01:14]}  Rc8 {[%clk 0:02:24]} 21. Rc1 {[%clk 0:01:06]}  Nc5 {[%clk 0:02:24]} 22. Qa3 {[%clk 0:00:59]}  Bd8 {[%clk 0:01:54]} 23. Rc3 {[%clk 0:00:45]}  Bb6 {[%clk 0:01:50]} 24. Nc1 {[%clk 0:00:39]}  Qa7 {[%clk 0:01:35]} 25. Qxa7 {[%clk 0:00:35]}  Bxa7 {[%clk 0:01:35]} 26. Nxb3 {[%clk 0:00:35]}  Nxb3 {[%clk 0:01:36]} 27. Rxb3 {[%clk 0:00:35]}  Rxc4 {[%clk 0:01:37]} 28. Ra3 {[%clk 0:00:31]}  Rc7 {[%clk 0:01:36]} 29. Be3 {[%clk 0:00:31]}  Bxe3 {[%clk 0:01:24]} 30. Rxa8+ {[%clk 0:00:31]}  Kh7 {[%clk 0:01:24]} 31. fxe3 {[%clk 0:00:32]}  Rc1+ {[%clk 0:01:24]} 32. Kh2 {[%clk 0:00:31]}  Rc2 {[%clk 0:01:25]} 33. Rb8 {[%clk 0:00:30]}  Re2 {[%clk 0:01:22]} 34. e4 {[%clk 0:00:26]}  g6 {[%clk 0:01:19]} 35. Rb7 {[%clk 0:00:25]}  Kg7 {[%clk 0:01:19]} 36. Kg1 {[%clk 0:00:25]}  Kf8 {[%clk 0:01:14]} 37. b4 {[%clk 0:00:24]}  f5 {[%clk 0:01:13]} 38. exf5 {[%clk 0:00:18]}  gxf5 {[%clk 0:01:14]} 39. Bf3 {[%clk 0:00:18]}  Rb2 {[%clk 0:01:13]} 40. Bxh5 {[%clk 0:00:18]}  e4 {[%clk 0:01:08]} 41. Rf7+ {[%clk 0:00:17]}  Kg8 {[%clk 0:01:08]} 42. Rxf5 {[%clk 0:00:16]}  Rxb4 {[%clk 0:01:09]} 43. Kf2 {[%clk 0:00:11]}  Rb3 {[%clk 0:01:07]} 44. Be2 {[%clk 0:00:10]}  Kg7 {[%clk 0:01:06]} 45. h4 {[%clk 0:00:10]}  Kg6 {[%clk 0:01:03]} 46. Rf4 {[%clk 0:00:10]}  Rb4 {[%clk 0:01:01]} 47. g4 {[%clk 0:00:09]}  Kh6 {[%clk 0:01:00]} 48. g5+ {[%clk 0:00:08]}  Kg7 {[%clk 0:01:00]} 49. h5 {[%clk 0:00:08]}  Rd4 {[%clk 0:01:00]} 50. Rf5 {[%clk 0:00:05]}  Rb4 {[%clk 0:00:57]} 51. Ke3 {[%clk 0:00:06]}  Rb3+ {[%clk 0:00:57]} 52. Kxe4 {[%clk 0:00:05]}  Rb4+ {[%clk 0:00:58]} 53. Kf3 {[%clk 0:00:06]}  Rb3+ {[%clk 0:00:57]} 54. Kf2 {[%clk 0:00:06]}  Rb4 {[%clk 0:00:58]} 55. Bf3 {[%clk 0:00:06]}  Rb2+ {[%clk 0:00:58]} 56. Kg3 {[%clk 0:00:06]}  Rb3 {[%clk 0:00:58]} 57. Rf6 {[%clk 0:00:06]}  Rb1 {[%clk 0:00:57]} 58. h6+ {[%clk 0:00:06]}  Kg8 {[%clk 0:00:57]} 59. g6 {[%clk 0:00:06]}  Rg1+ {[%clk 0:00:56]} 60. Kf4 {[%clk 0:00:06]}  Ra1 {[%clk 0:00:54]} 61. g7 {[%clk 0:00:06]}  Ra4+ {[%clk 0:00:50]} 62. Kg5 {[%clk 0:00:06]}  Ra8 {[%clk 0:00:48]} 63. Rf8+ {[%clk 0:00:06]}  Kh7 {[%clk 0:00:47]} 64. Rh8+ {[%clk 0:00:04]}  Rxh8 {[%clk 0:00:46]} 65. gxh8=Q+ {[%clk 0:00:05]}  Kxh8 {[%clk 0:00:47]} 66. Be4 {[%clk 0:00:05]}  Kg8 {[%clk 0:00:47]} 67. Kf6 {[%clk 0:00:05]}  Kh8 {[%clk 0:00:47]} 68. Ke6 {[%clk 0:00:05]}  Kg8 {[%clk 0:00:48]} 69. Kxd6 {[%clk 0:00:06]}  Kf7 {[%clk 0:00:49]} 70. Kc7 {[%clk 0:00:06]} 1-0


[Site "https://www.chess.com"]

[Event "Titled Tuesday Blitz December 14 2021"]
[White "Khegay, Dmitriy"]
[Black "Sviridov, Valery"]
[WhiteFideId "24153729"]
[BlackFideId "4120680"]
[WhiteElo "2457"]
[BlackElo "2454"]
[Result "0-1"]
[Round "03"]
[TimeControl "180+1"]
[Date "2021.12.14"]
[WhiteClock "0:00:01"]
[BlackClock "0:00:19"]

1. b3 {[%clk 0:03:00]}  Nf6 {[%clk 0:02:58]} 2. Bb2 {[%clk 0:03:01]}  g6 {[%clk 0:02:58]} 3. Nf3 {[%clk 0:03:00]}  Bg7 {[%clk 0:02:58]} 4. g3 {[%clk 0:03:01]}  O-O {[%clk 0:02:58]} 5. d4 {[%clk 0:03:00]}  c5 {[%clk 0:02:58]} 6. Bg2 {[%clk 0:02:59]}  d5 {[%clk 0:02:56]} 7. O-O {[%clk 0:02:58]}  Ne4 {[%clk 0:02:56]} 8. Nbd2 {[%clk 0:02:58]}  Nc6 {[%clk 0:02:56]} 9. c3 {[%clk 0:02:47]}  cxd4 {[%clk 0:02:53]} 10. cxd4 {[%clk 0:02:48]}  Bf5 {[%clk 0:02:53]} 11. e3 {[%clk 0:02:45]}  Rc8 {[%clk 0:02:52]} 12. Nxe4 {[%clk 0:02:42]}  Bxe4 {[%clk 0:02:52]} 13. Qd2 {[%clk 0:02:42]}  Qd6 {[%clk 0:02:25]} 14. Rfc1 {[%clk 0:02:42]}  Rc7 {[%clk 0:02:25]} 15. Rc5 {[%clk 0:02:24]}  b6 {[%clk 0:02:23]} 16. Rc3 {[%clk 0:02:23]}  Rfc8 {[%clk 0:02:22]} 17. Rac1 {[%clk 0:02:23]}  h5 {[%clk 0:02:17]} 18. Ne1 {[%clk 0:01:11]}  Bxg2 {[%clk 0:02:05]} 19. Kxg2 {[%clk 0:01:12]}  e6 {[%clk 0:02:01]} 20. Nd3 {[%clk 0:01:08]}  Bf6 {[%clk 0:02:01]} 21. Qc2 {[%clk 0:01:05]}  a5 {[%clk 0:01:49]} 22. a3 {[%clk 0:00:55]}  Kg7 {[%clk 0:01:22]} 23. Qd1 {[%clk 0:00:26]}  Qd7 {[%clk 0:01:13]} 24. R1c2 {[%clk 0:00:25]}  h4 {[%clk 0:01:13]} 25. Qc1 {[%clk 0:00:23]}  h3+ {[%clk 0:01:08]} 26. Kg1 {[%clk 0:00:16]}  Qe8 {[%clk 0:00:47]} 27. Nf4 {[%clk 0:00:15]}  Qd7 {[%clk 0:00:43]} 28. Nxh3 {[%clk 0:00:11]}  b5 {[%clk 0:00:44]} 29. Nf4 {[%clk 0:00:07]}  b4 {[%clk 0:00:44]} 30. axb4 {[%clk 0:00:08]}  axb4 {[%clk 0:00:44]} 31. Rd3 {[%clk 0:00:07]}  Nxd4 {[%clk 0:00:33]} 32. Rxc7 {[%clk 0:00:03]}  Rxc7 {[%clk 0:00:33]} 33. Qd1 {[%clk 0:00:03]}  Nf3+ {[%clk 0:00:28]} 34. Qxf3 {[%clk 0:00:04]}  Bxb2 {[%clk 0:00:28]} 35. e4 {[%clk 0:00:04]}  Rc1+ {[%clk 0:00:20]} 36. Kg2 {[%clk 0:00:04]}  dxe4 {[%clk 0:00:20]} 37. Qxe4 {[%clk 0:00:05]}  Qb5 {[%clk 0:00:21]} 38. h4 {[%clk 0:00:05]}  Qf5 {[%clk 0:00:20]} 39. Qf3 {[%clk 0:00:05]}  Rc3 {[%clk 0:00:19]} 40. h5 {[%clk 0:00:05]}  g5 {[%clk 0:00:19]} 41. Rxc3 {[%clk 0:00:03]}  bxc3 {[%clk 0:00:20]} 42. h6+ {[%clk 0:00:01]}  Kh7 {[%clk 0:00:19]} 0-1


[Site "https://www.chess.com"]

[Event "Titled Tuesday Blitz December 14 2021"]
[White "Lugovskoy, Maxim"]
[Black "Martins, Bruno Andre Leite"]
[WhiteFideId "24126454"]
[BlackFideId "1942255"]
[WhiteElo "2444"]
[BlackElo "2137"]
[Result "0-1"]
[Round "03"]
[TimeControl "180+1"]
[Date "2021.12.15"]
[WhiteClock "0:00:01"]
[BlackClock "0:00:16"]

1. e4 {[%clk 0:03:00]}  c6 {[%clk 0:02:52]} 2. d4 {[%clk 0:02:59]}  d5 {[%clk 0:02:52]} 3. Nc3 {[%clk 0:02:53]}  dxe4 {[%clk 0:02:52]} 4. Nxe4 {[%clk 0:02:52]}  Nf6 {[%clk 0:02:53]} 5. Nxf6+ {[%clk 0:02:45]}  exf6 {[%clk 0:02:54]} 6. Nf3 {[%clk 0:02:42]}  Bd6 {[%clk 0:02:54]} 7. Be2 {[%clk 0:02:38]}  O-O {[%clk 0:02:55]} 8. c3 {[%clk 0:02:34]}  Re8 {[%clk 0:02:55]} 9. Be3 {[%clk 0:02:33]}  Nd7 {[%clk 0:02:55]} 10. Qc2 {[%clk 0:02:31]}  Nf8 {[%clk 0:02:56]} 11. O-O {[%clk 0:02:30]}  Ng6 {[%clk 0:02:56]} 12. h3 {[%clk 0:02:28]}  Be6 {[%clk 0:02:56]} 13. c4 {[%clk 0:02:27]}  Qd7 {[%clk 0:02:57]} 14. Bd3 {[%clk 0:02:24]}  Bxh3 {[%clk 0:02:47]} 15. Nh2 {[%clk 0:01:30]}  Be6 {[%clk 0:02:41]} 16. Rfe1 {[%clk 0:01:27]}  Qc7 {[%clk 0:02:27]} 17. Nf3 {[%clk 0:01:23]}  Bg4 {[%clk 0:02:25]} 18. Nd2 {[%clk 0:01:16]}  Bf4 {[%clk 0:02:14]} 19. Nf1 {[%clk 0:01:16]}  Rad8 {[%clk 0:02:08]} 20. g3 {[%clk 0:01:12]}  Bxe3 {[%clk 0:02:05]} 21. Nxe3 {[%clk 0:01:11]}  Bf3 {[%clk 0:02:04]} 22. Nf5 {[%clk 0:01:09]}  Bg4 {[%clk 0:01:55]} 23. Ne3 {[%clk 0:01:05]}  Bh3 {[%clk 0:01:52]} 24. Bf5 {[%clk 0:01:03]}  Bxf5 {[%clk 0:01:52]} 25. Nxf5 {[%clk 0:01:04]}  Ne7 {[%clk 0:01:44]} 26. Rad1 {[%clk 0:00:56]}  Nxf5 {[%clk 0:01:37]} 27. Qxf5 {[%clk 0:00:57]}  h6 {[%clk 0:01:30]} 28. d5 {[%clk 0:00:56]}  Rxe1+ {[%clk 0:01:29]} 29. Rxe1 {[%clk 0:00:55]}  cxd5 {[%clk 0:01:29]} 30. cxd5 {[%clk 0:00:55]}  Qd7 {[%clk 0:01:22]} 31. Qd3 {[%clk 0:00:49]}  g6 {[%clk 0:01:16]} 32. Rd1 {[%clk 0:00:47]}  Qd6 {[%clk 0:01:16]} 33. Qd4 {[%clk 0:00:47]}  a6 {[%clk 0:01:15]} 34. b4 {[%clk 0:00:47]}  Kg7 {[%clk 0:01:15]} 35. a4 {[%clk 0:00:46]}  Qe5 {[%clk 0:01:14]} 36. Qd3 {[%clk 0:00:40]}  Rd6 {[%clk 0:01:11]} 37. b5 {[%clk 0:00:40]}  axb5 {[%clk 0:01:10]} 38. axb5 {[%clk 0:00:36]}  Qb2 {[%clk 0:01:09]} 39. Qc4 {[%clk 0:00:34]}  Qe5 {[%clk 0:01:01]} 40. Qc5 {[%clk 0:00:31]}  Qe7 {[%clk 0:00:55]} 41. b6 {[%clk 0:00:25]}  Qd8 {[%clk 0:00:55]} 42. Qc7 {[%clk 0:00:23]}  Rd7 {[%clk 0:00:55]} 43. d6 {[%clk 0:00:20]}  h5 {[%clk 0:00:38]} 44. Qc5 {[%clk 0:00:19]}  Qe8 {[%clk 0:00:34]} 45. Qc7 {[%clk 0:00:18]}  Qe6 {[%clk 0:00:33]} 46. Qc5 {[%clk 0:00:16]}  h4 {[%clk 0:00:33]} 47. Qd5 {[%clk 0:00:05]}  Qxd5 {[%clk 0:00:25]} 48. Rxd5 {[%clk 0:00:06]}  hxg3 {[%clk 0:00:26]} 49. fxg3 {[%clk 0:00:06]}  f5 {[%clk 0:00:26]} 50. Kf2 {[%clk 0:00:02]}  Kf6 {[%clk 0:00:27]} 51. Kf3 {[%clk 0:00:03]}  Ke6 {[%clk 0:00:27]} 52. Rd2 {[%clk 0:00:03]}  Rxd6 {[%clk 0:00:28]} 53. Rb2 {[%clk 0:00:04]}  g5 {[%clk 0:00:23]} 54. Re2+ {[%clk 0:00:03]}  Kf6 {[%clk 0:00:23]} 55. Rb2 {[%clk 0:00:03]}  Kg6 {[%clk 0:00:21]} 56. Rb5 {[%clk 0:00:03]}  Rc6 {[%clk 0:00:20]} 57. Kf2 {[%clk 0:00:03]}  Kf6 {[%clk 0:00:20]} 58. Kf3 {[%clk 0:00:03]}  Re6 {[%clk 0:00:20]} 59. Kf2 {[%clk 0:00:03]}  Re4 {[%clk 0:00:20]} 60. Kf3 {[%clk 0:00:02]}  g4+ {[%clk 0:00:20]} 61. Kf2 {[%clk 0:00:02]}  Kg5 {[%clk 0:00:20]} 62. Rb3 {[%clk 0:00:02]}  f4 {[%clk 0:00:17]} 63. Rb5+ {[%clk 0:00:01]}  f5 {[%clk 0:00:17]} 64. Rd5 {[%clk 0:00:01]}  fxg3+ {[%clk 0:00:15]} 65. Kxg3 {[%clk 0:00:02]}  Re3+ {[%clk 0:00:15]} 66. Kf2 {[%clk 0:00:02]}  Rb3 {[%clk 0:00:15]} 67. Rd6 {[%clk 0:00:02]}  f4 {[%clk 0:00:15]} 68. Rd5+ {[%clk 0:00:02]}  Kh4 {[%clk 0:00:16]} 69. Rf5 {[%clk 0:00:02]}  Rb2+ {[%clk 0:00:16]} 70. Ke1 {[%clk 0:00:02]}  Kg3 {[%clk 0:00:16]} 71. Rf7 {[%clk 0:00:01]}  Rxb6 {[%clk 0:00:16]} 72. Rxb7 {[%clk 0:00:01]}  Rxb7 {[%clk 0:00:16]} 0-1


[Site "https://www.chess.com"]

[Event "Titled Tuesday Blitz December 14 2021"]
[White "Madaminov, Mukhiddin"]
[Black "Willow, Jonah B"]
[WhiteFideId "14210703"]
[BlackFideId "438804"]
[WhiteElo "1916"]
[BlackElo "2261"]
[Result "0-1"]
[Round "03"]
[TimeControl "180+1"]
[Date "2021.12.14"]
[WhiteClock "0:00:19"]
[BlackClock "0:00:13"]

1. e4 {[%clk 0:03:00]}  c5 {[%clk 0:03:00]} 2. Nf3 {[%clk 0:02:58]}  g6 {[%clk 0:02:58]} 3. d4 {[%clk 0:02:56]}  cxd4 {[%clk 0:02:59]} 4. Qxd4 {[%clk 0:02:57]}  Nf6 {[%clk 0:02:59]} 5. e5 {[%clk 0:02:57]}  Nc6 {[%clk 0:02:59]} 6. Qa4 {[%clk 0:02:58]}  Nd5 {[%clk 0:02:59]} 7. Qb3 {[%clk 0:02:58]}  Nc7 {[%clk 0:02:55]} 8. Nc3 {[%clk 0:02:58]}  Bg7 {[%clk 0:02:55]} 9. Bf4 {[%clk 0:02:58]}  Ne6 {[%clk 0:02:55]} 10. Bg3 {[%clk 0:02:58]}  Qa5 {[%clk 0:02:55]} 11. O-O-O {[%clk 0:02:56]}  O-O {[%clk 0:02:54]} 12. h4 {[%clk 0:02:52]}  h5 {[%clk 0:02:45]} 13. Nd5 {[%clk 0:02:50]}  b6 {[%clk 0:02:26]} 14. Kb1 {[%clk 0:02:43]}  Ba6 {[%clk 0:02:22]} 15. Bxa6 {[%clk 0:02:41]}  Qxa6 {[%clk 0:02:23]} 16. Ng5 {[%clk 0:02:37]}  Rac8 {[%clk 0:02:19]} 17. Qd3 {[%clk 0:02:12]}  Qxd3 {[%clk 0:02:15]} 18. Rxd3 {[%clk 0:02:13]}  Rfe8 {[%clk 0:02:13]} 19. f4 {[%clk 0:02:08]}  Nc5 {[%clk 0:02:04]} 20. Rdd1 {[%clk 0:01:56]}  d6 {[%clk 0:01:29]} 21. exd6 {[%clk 0:01:03]}  exd6 {[%clk 0:01:30]} 22. Rhe1 {[%clk 0:01:03]}  f6 {[%clk 0:01:18]} 23. Nf3 {[%clk 0:01:01]}  Ne4 {[%clk 0:01:17]} 24. Bh2 {[%clk 0:01:01]}  f5 {[%clk 0:01:14]} 25. Bg1 {[%clk 0:01:00]}  Na5 {[%clk 0:01:09]} 26. Ng5 {[%clk 0:00:56]}  Nc4 {[%clk 0:01:06]} 27. Nxe4 {[%clk 0:00:53]}  fxe4 {[%clk 0:01:06]} 28. c3 {[%clk 0:00:52]}  Kf7 {[%clk 0:00:49]} 29. Bd4 {[%clk 0:00:51]}  Bxd4 {[%clk 0:00:41]} 30. Rxd4 {[%clk 0:00:52]}  Rc5 {[%clk 0:00:41]} 31. Kc2 {[%clk 0:00:43]}  b5 {[%clk 0:00:37]} 32. b3 {[%clk 0:00:34]}  Nb6 {[%clk 0:00:19]} 33. Nxb6 {[%clk 0:00:34]}  axb6 {[%clk 0:00:19]} 34. Rxd6 {[%clk 0:00:35]}  b4 {[%clk 0:00:17]} 35. Re3 {[%clk 0:00:32]}  Rxc3+ {[%clk 0:00:14]} 36. Rxc3 {[%clk 0:00:31]}  bxc3 {[%clk 0:00:15]} 37. Rxb6 {[%clk 0:00:25]}  e3 {[%clk 0:00:14]} 38. Kd1 {[%clk 0:00:22]}  c2+ {[%clk 0:00:13]} 39. Kxc2 {[%clk 0:00:19]}  e2 {[%clk 0:00:13]} 0-1


[Site "https://www.chess.com"]